bitfinex/quotes_SOLUSD_20251103
["timestamp","ask_amount","ask_price","bid_price","bid_amount"]
[1762138604407,9.78882769,184.05,184.0,0.69]
[1762138604733,20.592,184.02,184.0,0.69]
[1762138604904,20.592,184.01,184.0,0.69]
[1762138605429,28.43091601,184.01,183.99,0.2]
[1762138605628,7.83891601,184.0,183.99,5.63500326]
[1762138606716,17.6277437,184.0,183.99,0.2]
[1762138611404,17.6277437,184.0,183.99,0.89]
[1762138611620,9.78882769,184.0,183.99,0.89]
[1762138611818,17.6277437,184.0,183.99,0.89]
[1762138612131,28.43091601,184.01,183.99,6.32507799]
[1762138613137,7.83891601,184.0,183.99,6.32507799]
[1762138613325,7.83891601,184.0,183.99,0.89]
[1762138613527,17.6277437,184.0,183.99,0.2]
[1762138613725,17.6277437,184.0,183.99,0.89]
[1762138614228,7.83891601,184.0,183.99,6.32507799]
[1762138615101,7.83891601,184.0,183.99,5.63507799]
[1762138615306,7.83891601,184.0,183.99,0.2]
[1762138615643,17.6277437,184.0,183.99,0.2]
[1762138619638,7.83891601,184.0,183.99,0.89]
[1762138619933,7.83891601,184.0,183.99,0.2]
[1762138620433,17.6277437,184.0,183.99,0.2]
[1762138621726,17.6277437,184.0,183.99,0.89]
[1762138622235,17.6277437,184.0,183.99,0.2]
[1762138623339,7.83891601,184.0,183.99,5.63507799]
[1762138623638,28.43091601,184.0,183.99,6.32507799]
[1762138624236,20.592,184.0,183.99,6.32507799]
[1762138625025,7.83891601,184.02,183.99,6.32507799]
[1762138625330,20.592,184.0,183.99,5.63507799]
[1762138625728,7.83891601,184.01,183.99,6.32507799]
[1762138625929,7.83891601,184.01,184.0,6.1347826]
[1762138626245,20.592,184.0,183.99,0.2]
[1762138626539,20.592,184.0,183.99,5.63507799]
[1762138626748,20.592,184.0,183.99,6.33507799]
[1762138627534,20.592,184.0,183.99,19.92277297]
[1762138628330,20.592,184.03,183.99,19.92277297]
[1762138628532,20.592,184.0,183.99,19.22277297]
[1762138629046,28.43091601,184.03,184.0,0.7]
[1762138629558,7.83891601,184.02,184.0,0.7]
[1762138629752,7.83891601,184.01,184.0,0.7]
[1762138630349,7.83891601,184.02,184.0,19.72173912]
[1762138630840,20.592,184.03,184.01,0.7]
[1762138631245,20.592,184.02,183.99,0.2]
[1762138631837,20.592,184.02,183.99,0.9]
[1762138632146,7.83891601,184.0,183.99,0.9]
[1762138632538,7.83891601,184.0,183.99,0.2]
[1762138632844,7.83891601,184.0,183.99,0.9]
[1762138633422,7.83891601,184.0,183.99,6.33507799]
[1762138634440,5.21046183,184.0,183.99,6.33507799]
[1762138634643,5.21046183,184.0,183.99,0.9]
[1762138634950,20.592,184.02,183.99,6.33507799]
[1762138635151,5.21046183,184.0,183.99,0.9]
[1762138635454,5.21046183,184.0,183.99,6.33507799]
[1762138635650,5.21046183,184.0,183.99,0.2]
[1762138636445,20.592,184.02,183.99,6.33507799]
[1762138636637,20.592,184.02,183.99,19.92277297]
[1762138636638,5.21046183,184.01,183.99,19.92277297]
[1762138636949,25.80246183,184.02,184.0,0.7]
[1762138637251,19.872,184.01,184.0,0.7]
[1762138637465,5.21046183,184.03,184.0,0.7]
[1762138638332,2.04548864,184.03,184.01,5.43448725]
[1762138638534,2.04548864,184.03,184.01,19.02070539]
[1762138638853,2.04548864,184.03,184.02,0.7]
[1762138639440,54.33784477,184.1,184.02,0.7]
[1762138639641,2.04548864,184.06,184.02,0.7]
[1762138639954,2.04548864,184.04,184.02,0.7]
[1762138640330,2.04548864,184.04,184.03,5.43389664]
[1762138640753,2.04548864,184.05,184.03,6.13389664]
[1762138640952,2.04548864,184.04,184.03,5.43389664]
[1762138641536,20.592,184.07,184.03,6.13389664]
[1762138641860,50.0,184.08,183.99,0.2]
[1762138641861,2.04548864,184.04,183.99,0.2]
[1762138642038,2.04548864,184.0,183.99,0.9]
[1762138642235,2.04548864,184.0,183.99,6.33507799]
[1762138646775,2.04548864,184.0,183.99,0.2]
[1762138646979,22.63748864,184.0,183.99,0.2]
[1762138648383,33.12631633,184.0,183.99,0.2]
[1762138648675,32.42631633,184.0,183.99,0.2]
[1762138650367,33.12631633,184.0,183.99,0.2]
[1762138650889,83.12631633,184.0,183.99,0.2]
[1762138651077,81.08082769,184.0,183.99,0.2]
[1762138651273,83.12631633,184.0,183.99,0.2]
[1762138651789,80.38082769,184.0,183.99,0.2]
[1762138651992,82.42631633,184.0,183.99,0.2]
[1762138652284,83.12631633,184.0,183.99,0.2]
[1762138652857,82.42631633,184.0,183.99,0.2]
[1762138653194,2.04548864,184.0,183.99,6.30507799]
[1762138653361,2.04548864,184.0,183.99,19.89277297]
[1762138653681,22.63748864,184.0,183.99,0.2]
[1762138659301,22.63748864,184.0,183.99,6.34507799]
[1762138659796,22.63748864,184.0,183.99,0.2]
[1762138661998,20.592,184.0,183.99,0.2]
[1762138662292,22.63748864,184.0,183.99,5.63507799]
[1762138663501,22.63748864,184.0,183.99,0.2]
[1762138664999,22.63748864,184.0,183.99,6.34507799]
[1762138665201,20.592,184.0,183.99,6.34507799]
[1762138665497,22.63748864,184.0,183.99,5.63507799]
[1762138667292,22.63748864,184.0,183.99,0.2]
[1762138667597,22.63748864,184.0,183.99,5.63507799]
[1762138667803,22.63748864,184.0,183.99,0.2]
[1762138668400,22.63748864,184.0,183.99,5.63507799]
[1762138669598,22.63748864,184.0,183.99,6.34507799]
[1762138669980,9.78882769,184.04,183.99,6.34507799]
[1762138670181,2.04548864,184.01,184.0,0.71]
[1762138670402,58.18195456,184.05,184.0,0.71]
[1762138670403,50.0,184.07,184.0,0.71]
[1762138670593,50.0,184.07,184.0,2.75548864]
[1762138670802,50.0,184.07,184.01,0.71]
[1762138670997,2.04548864,184.05,184.01,0.71]
[1762138671300,20.592,184.04,184.01,0.71]
[1762138671995,9.78882769,184.09,184.02,19.01967176]
[1762138672186,2.04548864,184.07,184.03,0.71]
[1762138672384,9.78882769,184.09,184.03,0.71]
[1762138672707,22.63748864,184.06,184.03,0.71]
[1762138673105,2.04548864,184.05,184.03,0.71]
[1762138673402,2.04548864,184.04,184.03,0.71]
[1762138674206,2.04548864,184.04,184.03,6.14389664]
[1762138674905,20.592,184.06,184.03,19.72863825]
[1762138675124,2.04548864,184.04,184.03,19.01863825]
[1762138675804,2.04548864,184.04,184.03,19.72863825]
[1762138676411,20.592,184.06,184.03,19.72863825]
[1762138676585,2.04548864,184.04,184.03,19.01863825]
[1762138677200,2.04548864,184.05,184.03,19.01863825]
[1762138677706,2.04548864,184.04,184.0,19.02173912]
[1762138678205,2.04548864,184.04,184.01,0.71]
[1762138679187,2.04548864,184.02,184.01,0.71]
[1762138679592,2.04548864,184.02,184.01,6.14448725]
[1762138679788,20.592,184.06,184.01,19.73070539]
[1762138680126,2.04548864,184.02,184.01,19.02070539]
[1762138680292,20.592,184.06,184.01,19.02070539]
[1762138680496,2.04548864,184.03,184.01,19.02070539]
[1762138681219,2.04548864,184.03,184.02,0.71]
[1762138681949,2.04548864,184.03,184.02,6.14419193]
[1762138682506,20.592,184.06,184.02,19.72967176]
[1762138682736,2.04548864,184.03,184.02,19.72967176]
[1762138683629,22.63748864,184.06,184.02,19.72967176]
[1762138683936,20.592,184.09,184.03,0.71]
[1762138684235,20.592,184.07,184.04,5.43360139]
[1762138684606,20.592,184.07,184.04,6.14360139]
[1762138685222,20.592,184.07,184.04,5.43360139]
[1762138685532,2.04548864,184.05,184.04,6.14360139]
[1762138685734,20.592,184.02,183.99,0.91]
[1762138686040,20.592,184.02,184.0,5.4347826]
[1762138687121,2.04548864,184.01,184.0,5.4347826]
[1762138688235,2.04548864,184.01,184.0,19.72173912]
[1762138688431,20.592,184.03,184.0,19.72173912]
[1762138688634,2.04548864,184.01,184.0,19.02173912]
[1762138689130,2.04548864,184.01,184.0,5.4347826]
[1762138689451,20.592,184.0,183.99,0.2]
[1762138689612,73.33748864,184.0,183.93,10.44935966]
[1762138689818,20.592,183.96,183.94,0.7]
[1762138690115,20.592,183.96,183.95,5.43625985]
[1762138690332,22.63748864,183.96,183.95,5.43625985]
[1762138690720,22.63748864,183.96,183.95,6.13625985]
[1762138692033,22.63748864,183.96,183.95,5.43625985]
[1762138692236,22.63748864,183.96,183.94,5.43655539]
[1762138692540,2.04548864,183.95,183.93,15.18618514]
[1762138692706,2.04548864,183.94,183.93,15.88618514]
[1762138692910,2.04548864,183.94,183.93,15.18618514]
[1762138693330,20.592,183.97,183.93,28.77831257]
[1762138693517,20.592,183.97,183.94,0.7]
[1762138693731,2.04548864,183.95,183.94,0.7]
[1762138694441,2.04548864,183.95,183.94,6.13655539]
[1762138694646,2.04548864,183.95,183.94,5.43655539]
[1762138695434,2.04548864,183.95,183.93,15.18617373]
[1762138695738,2.04548864,183.94,183.93,15.18617373]
[1762138696414,3.2000107,183.94,183.93,15.18617373]
[1762138697514,3.2000107,183.94,183.93,29.47830116]
[1762138698822,20.592,183.96,183.93,29.47830116]
[1762138699014,3.2000107,183.95,183.94,0.7]
[1762138699415,3.2000107,183.95,183.93,28.77830116]
[1762138699644,3.2000107,183.94,183.93,29.47830116]
[1762138700944,20.592,183.97,183.93,29.47830116]
[1762138701131,3.2000107,183.96,183.94,0.7]
[1762138701320,20.592,183.97,183.94,0.7]
[1762138701521,3.2000107,183.96,183.94,0.7]
[1762138703146,3.2000107,183.96,183.95,5.43625985]
[1762138703744,3.2000107,183.96,183.95,6.13625985]
[1762138703956,16.34832838,184.01,183.95,19.72690948]
[1762138704156,3.2000107,184.0,183.96,0.7]
[1762138704332,3.2000107,184.01,183.96,0.7]
[1762138704537,3.2000107,184.0,183.96,0.7]
[1762138704854,3.2000107,183.98,183.96,0.7]
[1762138705055,3.2000107,183.97,183.96,6.13596434]
[1762138705263,3.2000107,183.97,183.96,5.43596434]
[1762138705437,3.2000107,183.97,183.96,6.11596434]
[1762138705968,3.2000107,183.97,183.96,5.43596434]
[1762138706331,20.592,183.98,183.96,6.11596434]
[1762138706638,64.27064963,184.03,183.96,6.11596434]
[1762138706639,3.2000107,183.99,183.97,0.68]
[1762138706858,20.592,184.0,183.97,0.68]
[1762138706859,23.7920107,184.0,183.97,0.68]
[1762138707037,3.2000107,184.0,183.98,5.43537341]
[1762138707247,3.2000107,184.01,183.98,19.02380693]
[1762138707553,3.2000107,184.02,183.99,0.68]
[1762138707746,23.7920107,184.02,183.99,0.68]
[1762138707944,3.2000107,184.02,183.99,0.68]
[1762138708141,20.592,184.04,183.99,0.68]
[1762138708452,3.2000107,184.04,183.99,0.68]
[1762138708762,3.2000107,184.05,183.99,3.8800107]
[1762138709061,20.592,184.06,184.0,19.02173912]
[1762138709260,3.2000107,184.03,184.01,0.68]
[1762138709838,3.2000107,184.04,184.01,0.68]
[1762138710058,3.2000107,184.02,184.0,19.02173912]
[1762138710262,3.2000107,184.01,184.0,19.02173912]
[1762138710553,3.2000107,184.01,184.0,19.70173912]
[1762138711338,3.2000107,184.02,184.0,19.70173912]
[1762138711857,3.2000107,184.02,184.01,0.68]
[1762138712160,20.592,184.06,184.01,0.68]
[1762138712358,20.592,184.06,184.0,19.02173912]
[1762138712359,3.2000107,184.02,184.0,19.02173912]
[1762138712568,3.2000107,184.02,184.0,19.70173912]
[1762138712948,3.2000107,184.01,183.96,0.68]
[1762138713256,3.2000107,184.01,183.95,0.68]
[1762138713257,3.2000107,183.97,183.95,0.68]
[1762138713660,3.2000107,183.98,183.96,19.02587519]
[1762138713962,3.2000107,183.97,183.96,19.02587519]
[1762138714166,3.2000107,183.97,183.96,19.70587519]
[1762138714364,3.2000107,183.97,183.96,19.02587519]
[1762138714561,3.2000107,183.97,183.96,19.70587519]
[1762138715239,20.592,184.0,183.94,19.70794388]
[1762138715466,3.2000107,183.97,183.94,19.70794388]
[1762138715663,3.2000107,183.96,183.94,19.70794388]
[1762138716261,3.2000107,183.96,183.95,0.67]
[1762138716969,3.2000107,183.97,183.95,0.67]
[1762138717343,20.592,184.0,183.96,19.02587519]
[1762138717576,3.2000107,184.01,183.96,22.22588589]
[1762138717862,20.592,184.02,183.97,0.67]
[1762138718066,50.0,184.08,183.99,3.2000107]
[1762138718271,2.84224943,184.09,184.01,3.2000107]
[1762138718272,3.2000107,184.06,184.01,3.2000107]
[1762138718563,3.2000107,184.06,184.0,3.2000107]
[1762138718740,20.79380545,184.1,184.0,3.2000107]
[1762138718949,3.2000107,184.07,184.01,3.8700107]
[1762138719151,23.7920107,184.07,184.02,0.67]
[1762138719446,3.2000107,184.07,184.03,19.01863825]
[1762138719668,3.2000107,184.06,184.03,19.01863825]
[1762138719868,3.2000107,184.06,184.03,19.68863825]
[1762138720074,3.2000107,184.06,184.04,0.67]
[1762138720459,3.2000107,184.06,184.03,19.01863825]
[1762138720661,3.2000107,184.05,184.03,19.68863825]
[1762138720968,3.2000107,184.05,184.04,0.67]
[1762138721154,3.2000107,184.07,184.04,0.67]
[1762138721355,23.7920107,184.08,184.04,0.67]
[1762138721556,23.7920107,184.08,184.05,19.01657157]
[1762138721962,23.7920107,184.08,184.05,19.68657157]
[1762138722151,23.7920107,184.08,184.05,19.01657157]
[1762138722358,20.592,184.08,184.06,0.67]
[1762138722705,3.2000107,184.09,184.07,19.01450534]
[1762138722977,3.2000107,184.09,184.0,8.63477972]
[1762138722978,3.2000107,184.08,184.0,8.63477972]
[1762138723146,3.2000107,184.06,184.01,0.67]
[1762138723349,3.2000107,184.06,184.01,3.8700107]
[1762138723558,3.2000107,184.07,184.01,3.8700107]
[1762138723758,3.2000107,184.07,184.02,0.67]
[1762138724055,3.2000107,184.06,184.02,0.67]
[1762138724554,3.2000107,184.06,184.03,19.01863825]
[1762138724961,3.2000107,184.06,184.04,0.67]
[1762138725858,20.592,184.09,184.05,19.01657157]
[1762138726062,3.2000107,184.06,184.05,19.01657157]
[1762138728291,20.592,184.09,184.05,19.01657157]
[1762138728483,3.2000107,184.06,184.05,19.01657157]
[1762138729690,20.592,184.09,184.05,0.67]
[1762138730212,3.2000107,184.06,184.05,0.67]
[1762138730393,3.2000107,184.07,184.05,0.67]
[1762138730793,3.2000107,184.07,184.06,5.43301097]
[1762138732668,3.9100107,184.07,184.06,5.43301097]
[1762138732874,3.9100107,184.07,184.02,19.01967176]
[1762138733079,3.2000107,184.04,184.02,19.01967176]
[1762138733393,3.2000107,184.04,184.02,19.68967176]
[1762138733601,3.2000107,184.04,184.02,19.01967176]
[1762138733776,3.2000107,184.03,184.02,19.68967176]
[1762138734092,3.2000107,184.03,184.02,19.01967176]
[1762138735293,3.2000107,184.03,184.0,19.69173912]
[1762138735679,3.2000107,184.03,184.01,0.67]
[1762138735993,3.2000107,184.03,184.0,19.69173912]
[1762138736392,3.2000107,184.03,184.01,0.67]
[1762138737794,3.2000107,184.03,184.0,13.58695652]
[1762138737999,3.2000107,184.03,184.0,14.25695652]
[1762138738495,3.2000107,184.03,184.0,13.58695652]
[1762138738791,3.2000107,184.03,184.01,0.67]
[1762138739795,20.592,184.05,184.02,19.01967176]
[1762138740290,3.2000107,184.03,184.02,19.01967176]
[1762138740606,23.7920107,184.03,184.0,5.4347826]
[1762138740900,3.2000107,184.01,184.0,5.4347826]
[1762138741105,23.7920107,184.01,184.0,5.4347826]
[1762138741479,3.2000107,184.01,184.0,5.4347826]
[1762138742198,3.2000107,184.01,183.97,0.67]
[1762138743390,3.2000107,184.01,183.98,19.02380693]
[1762138743775,3.2000107,184.01,183.98,19.69380693]
[1762138743970,3.2000107,184.0,183.98,19.69380693]
[1762138745076,3.2000107,183.99,183.98,19.02380693]
[1762138745477,3.9100107,183.99,183.98,5.43537341]
[1762138745676,24.5020107,183.99,183.96,5.43596434]
[1762138745881,24.5020107,183.99,183.94,5.4363069]
[1762138745882,20.592,183.96,183.94,5.4363069]
[1762138746085,3.2000107,183.95,183.94,5.4363069]
[1762138746300,20.592,183.96,183.94,5.4363069]
[1762138746474,3.2000107,183.95,183.94,5.4363069]
[1762138748698,3.8600107,183.95,183.94,5.4363069]
[1762138748893,3.2000107,183.95,183.94,5.4363069]
[1762138753018,34.84435677,183.97,183.94,5.4363069]
[1762138753318,3.2000107,183.95,183.94,5.4363069]
[1762138753527,34.84435677,183.97,183.94,19.02769539]
[1762138753682,50.0,184.0,183.94,19.02769539]
[1762138753683,20.592,183.99,183.94,19.02769539]
[1762138753889,20.592,183.95,183.94,19.02769539]
[1762138754316,20.592,183.95,183.94,19.68769539]
[1762138755187,20.592,183.94,183.93,9.74935966]
[1762138755409,24.4520107,183.94,183.93,9.74935966]
[1762138755707,3.8600107,183.94,183.93,9.74935966]
[1762138756108,18.31652206,183.94,183.93,9.74935966]
[1762138757092,9.78882769,183.89,183.88,0.2]
[1762138757295,66.18884909,183.89,183.88,0.2]
[1762138757509,66.84884909,183.89,183.88,0.2]
[1762138757682,72.48892403,183.89,183.87,0.2]
[1762138757888,20.592,183.83,183.82,0.2]
[1762138758108,23.7920107,183.83,183.82,0.2]
[1762138758311,83.0920135,183.83,183.82,0.2]
[1762138758514,85.27404988,183.83,183.82,0.2]
[1762138759092,89.73196696,183.83,183.82,0.2]
[1762138759616,9.78882769,183.82,183.81,0.2]
[1762138759811,12.5000135,183.82,183.81,0.2]
[1762138766114,59.78882769,183.81,183.8,0.2]
[1762138766417,62.5400135,183.81,183.8,0.2]
[1762138766616,76.34536461,183.81,183.8,0.2]
[1762138767612,50.7,183.85,183.8,6.3106964]
[1762138767917,22.64318581,183.81,183.8,6.3106964]
[1762138768219,50.0,183.89,183.81,0.67]
[1762138768429,2.05118581,183.87,183.82,2.05118581]
[1762138768605,20.592,183.86,183.82,2.05118581]
[1762138768796,20.592,183.86,183.83,0.67]
[1762138769122,2.05118581,183.87,183.83,0.67]
[1762138769318,20.592,183.87,183.83,0.67]
[1762138769524,22.64318581,183.87,183.84,5.43951261]
[1762138769703,22.64318581,183.87,183.83,6.10979932]
[1762138769901,22.64318581,183.87,183.83,19.70932061]
[1762138770217,2.05118581,183.87,183.84,0.67]
[1762138770521,22.64318581,183.87,183.84,0.67]
[1762138770910,20.592,183.87,183.84,0.67]
[1762138771516,22.64318581,183.87,183.85,5.43921675]
[1762138771914,22.64318581,183.87,183.85,6.10921675]
[1762138772308,20.592,183.87,183.85,6.10921675]
[1762138775261,22.64318581,183.87,183.85,5.43921675]
[1762138775413,22.64318581,183.87,183.85,6.10921675]
[1762138776203,20.592,183.87,183.86,0.69]
[1762138776402,20.592,183.88,183.86,0.69]
[1762138776602,102.1,183.9,183.86,0.69]
[1762138777119,20.592,183.87,183.86,8.18010672]
[1762138777323,20.592,183.87,183.86,6.12892091]
[1762138782123,22.64318581,183.87,183.86,5.43892091]
[1762138783314,22.64318581,183.87,183.85,19.03725863]
[1762138783627,2.05118581,183.86,183.85,19.72725863]
[1762138783805,20.592,183.87,183.85,19.72725863]
[1762138784009,2.05118581,183.86,183.85,19.72725863]
[1762138784526,22.64318581,183.87,183.85,19.72725863]
[1762138786006,124.74318581,183.87,183.85,19.72725863]
[1762138786312,2.05118581,183.86,183.85,6.12921675]
[1762138786514,2.05118581,183.86,183.85,5.43921675]
[1762138786724,2.71118581,183.86,183.83,5.43980851]
[1762138786931,2.05118581,183.84,183.83,5.43980851]
[1762138787303,2.05118581,183.84,183.83,6.12980851]
[1762138788205,2.05118581,183.84,183.83,5.43980851]
[1762138788441,2.05118581,183.84,183.82,5.44010445]
[1762138789129,2.05118581,183.84,183.82,6.13010445]
[1762138790029,2.05118581,183.84,183.81,19.04140144]
[1762138790330,122.692,183.87,183.82,0.69]
[1762138790529,2.05118581,183.84,183.82,0.69]
[1762138790731,2.05118581,183.83,183.81,19.04140144]
[1762138790911,2.05118581,183.82,183.81,5.44040041]
[1762138791107,20.592,183.83,183.81,5.44040041]
[1762138791310,2.05118581,183.82,183.81,5.44040041]
[1762138791836,2.05118581,183.82,183.81,6.13040041]
[1762138792015,2.05118581,183.82,183.81,19.73140144]
[1762138792418,2.05118581,183.82,183.81,19.04140144]
[1762138793336,22.64318581,183.82,183.81,19.04140144]
[1762138793635,20.592,183.82,183.81,19.73140144]
[1762138796244,2.05118581,183.84,183.81,19.73140144]
[1762138796437,20.592,183.84,183.82,0.69]
[1762138797211,22.64318581,183.84,183.83,5.43980851]
[1762138797751,20.592,183.84,183.83,6.12980851]
[1762138797915,22.64318581,183.84,183.83,6.12980851]
[1762138798447,124.74318581,183.87,183.83,19.7293298]
[1762138798742,20.592,183.85,183.84,0.69]
[1762138800043,2.05118581,183.86,183.83,19.0393298]
[1762138800264,2.05118581,183.86,183.84,0.69]
[1762138800538,2.05118581,183.86,183.85,5.43921675]
[1762138800744,2.05118581,183.87,183.85,19.03725863]
[1762138801039,2.05118581,183.87,183.85,19.72725863]
[1762138801637,2.05118581,183.86,183.85,19.03725863]
[1762138801826,21.252,183.88,183.85,19.03725863]
[1762138802143,2.05118581,183.86,183.85,19.03725863]
[1762138802825,2.05118581,183.86,183.84,5.43951261]
[1762138803021,21.252,183.88,183.84,5.43951261]
[1762138803022,2.05118581,183.85,183.84,5.43951261]
[1762138803753,23.30318581,183.85,183.84,5.43951261]
[1762138803919,20.592,183.85,183.84,5.43951261]
[1762138804127,20.592,183.85,183.84,6.12951261]
[1762138804128,22.64318581,183.85,183.84,6.12951261]
[1762138804448,22.64318581,183.85,183.84,5.43951261]
[1762138804661,20.592,183.84,183.82,5.43985544]
[1762138804960,2.05118581,183.83,183.81,5.44040041]
[1762138805123,2.05118581,183.82,183.81,5.44040041]
[1762138805848,2.71118581,183.82,183.81,5.44040041]
[1762138806157,20.592,183.84,183.81,19.04140144]
[1762138806341,122.692,183.87,183.82,2.71118581]
[1762138806557,20.592,183.87,183.83,0.66]
[1762138806727,152.1,183.92,183.84,2.05118581]
[1762138806728,152.81,183.92,183.84,2.05118581]
[1762138806927,104.15118581,183.91,183.86,19.0362232]
[1762138807358,20.592,183.88,183.87,0.66]
[1762138807660,20.592,183.88,183.86,19.6962232]
[1762138808124,22.64318581,183.91,183.87,0.66]
[1762138808528,20.592,183.91,183.87,0.66]
[1762138809027,2.05118581,183.9,183.88,19.0341527]
[1762138809220,20.592,183.91,183.88,19.0341527]
[1762138809221,22.64318581,183.91,183.88,19.0341527]
[1762138809423,2.05118581,183.9,183.88,19.6941527]
[1762138809638,2.05118581,183.9,183.88,19.0341527]
[1762138809844,2.05118581,183.89,183.86,0.66]
[1762138810645,2.05118581,183.88,183.86,0.66]
[1762138811052,2.05118581,183.88,183.86,5.4387614]
[1762138811232,2.05118581,183.87,183.86,5.4387614]
[1762138811629,2.05118581,183.87,183.86,6.0987614]
[1762138811946,2.05118581,183.88,183.86,6.0987614]
[1762138812135,2.05118581,183.89,183.87,0.66]
[1762138812448,104.15118581,183.89,183.87,0.66]
[1762138812851,102.1,183.89,183.87,0.66]
[1762138813149,102.1,183.89,183.86,19.03606369]
[1762138813150,102.1,183.89,183.88,5.43832934]
[1762138813454,102.81,183.89,183.88,5.43832934]
[1762138814049,102.81,183.89,183.84,5.43951261]
[1762138814235,2.05118581,183.86,183.84,6.09951261]
[1762138814750,2.05118581,183.86,183.84,19.69829415]
[1762138814950,2.05118581,183.86,183.81,32.64240247]
[1762138815157,2.05118581,183.86,183.85,0.66]
[1762138815664,102.1,183.89,183.85,0.66]
[1762138815965,2.05118581,183.88,183.85,0.66]
[1762138816164,2.05118581,183.87,183.85,0.66]
[1762138817041,2.05118581,183.87,183.83,0.66]
[1762138817241,2.05118581,183.86,183.83,0.66]
[1762138817635,102.81,183.89,183.83,0.66]
[1762138817830,2.05118581,183.88,183.83,0.66]
[1762138818455,2.05118581,183.86,183.83,0.66]
[1762138818656,2.05118581,183.87,183.83,0.66]
[1762138819155,122.692,183.89,183.87,5.43862511]
[1762138819645,122.692,183.89,183.88,0.66]
[1762138821141,122.692,183.89,183.88,6.09832934]
[1762138823242,122.692,183.89,183.88,5.43832934]
[1762138825562,105.30006839,183.89,183.87,5.43862511]
[1762138825865,102.1,183.89,183.87,6.10862511]
[1762138827166,102.1,183.89,183.86,13.59688629]
[1762138827379,3.20006839,183.87,183.81,5.44040041]
[1762138827539,3.20006839,183.83,183.81,19.04070768]
[1762138827737,3.20006839,183.82,183.81,5.44040041]
[1762138828161,3.89006839,183.82,183.81,5.44040041]
[1762138828372,3.20006839,183.82,183.81,5.44040041]
[1762138828751,3.20006839,183.82,183.8,0.2]
[1762138828752,3.89006839,183.82,183.8,5.64069046]
[1762138829060,3.20006839,183.81,183.8,5.64069046]
[1762138830060,59.78882769,183.88,183.8,23.11249987]
[1762138830363,152.1,183.9,183.83,3.20006839]
[1762138830567,3.20006839,183.88,183.83,3.20006839]
[1762138830747,3.20006839,183.88,183.83,0.67]
[1762138830942,3.20006839,183.88,183.84,0.67]
[1762138831470,3.20006839,183.88,183.85,5.43921675]
[1762138831876,3.20006839,183.87,183.85,5.43921675]
[1762138832061,3.20006839,183.86,183.85,5.43921675]
[1762138832371,3.20006839,183.86,183.82,19.04036557]
[1762138832569,3.20006839,183.84,183.82,19.04036557]
[1762138832752,3.20006839,183.83,183.82,19.04036557]
[1762138833255,10.47882769,183.89,183.82,19.04036557]
[1762138833256,3.20006839,183.9,183.82,22.91043396]
[1762138833456,3.20006839,183.9,183.85,3.20006839]
[1762138833649,3.20006839,183.9,183.86,19.0362232]
[1762138833851,102.1,183.92,183.86,19.7062232]
[1762138834151,3.20006839,183.91,183.87,0.67]
[1762138834971,3.20006839,183.9,183.86,19.0362232]
[1762138835163,3.20006839,183.89,183.86,19.7062232]
[1762138835356,0.69,183.91,183.86,19.0362232]
[1762138835565,3.20006839,183.87,183.86,19.0362232]
[1762138835762,3.20006839,183.87,183.84,19.03829415]
[1762138836575,3.20006839,183.9,183.85,3.88006839]
[1762138837074,102.1,183.92,183.86,0.68]
[1762138837370,20.592,183.89,183.86,0.68]
[1762138837561,23.79206839,183.89,183.86,0.68]
[1762138837756,20.592,183.89,183.87,5.43862511]
[1762138838063,23.79206839,183.89,183.87,5.43862511]
[1762138838372,20.592,183.89,183.87,5.43862511]
[1762138838551,20.592,183.89,183.88,0.68]
[1762138839778,105.30006839,183.92,183.89,5.4380336]
[1762138840082,20.592,183.9,183.89,5.4380336]
[1762138841060,20.592,183.9,183.89,19.03311761]
[1762138842198,14.18970508,183.97,183.89,19.03311761]
[1762138842199,102.1,183.98,183.91,3.20006839]
[1762138842353,50.1,184.03,183.96,3.20006839]
[1762138842563,3.30006839,184.03,183.98,3.20006839]
[1762138842863,3.20006839,184.0,183.95,3.20006839]
[1762138843065,0.1,184.03,183.96,0.68]
[1762138843474,0.1,184.03,183.96,3.88006839]
[1762138843984,3.20006839,184.01,183.97,0.68]